Cogmind - Beta 13 @@@ ROGUE MODE // 2024.07.17 @ 13:15:34 Player: Sionnis Result: Self-destructed Performance ------------- Evolutions (1) 500 Regions Visited (5) 1000 Robots Destroyed (69) 345 Value Destroyed (1388) 1388 Prototype IDs (23) 460 Alien Tech Used (0) 0 Bonus (378) 378 TOTAL SCORE: 4071 Bonus ------- High Alert Combat Kills 78 Aligned with FarCom 300 Cogmind --------- Core Integrity 243/400 Matter 114/300 Energy 100/100 System Corruption 0% Temperature Danger (410) Movement Treading (240) Ox1 Location -8/Mines Parts ------- > --- POWER (1) -------- (None) > --- PROPULSION (2) --- Light Treads Compact Wheel > --- UTILITY (2) ------ Medium Storage Unit Cloak of Protection > --- WEAPON (4) ------- Heavy Assault Rifle Heavy Assault Rifle Heavy Assault Rifle Slug Cannon > --- INVENTORY (10) --- Light Treads Light Treads Aluminum Leg Aluminum Leg Aluminum Leg Light Armor Plating Light Armor Plating Datajack Datajack Longsword +1 Peak State ------------ > --- POWER ------------ Light Ion Engine > --- PROPULSION ------- Light Treads Light Treads > --- UTILITY ---------- Medium Storage Unit Cloak of Protection > --- WEAPON ----------- Heavy Assault Rifle Heavy Assault Rifle Heavy Assault Rifle Slug Cannon > --- INVENTORY -------- Light Treads Aluminum Leg Aluminum Leg Aluminum Leg Compact Wheel Light Armor Plating Light Armor Plating Datajack Datajack Longsword +1 [Rating: 23] Favorites ----------- Power Light Ion Engine Engine Light Ion Engine Power Core Light Nuclear Core Propulsion Light Treads Treads Light Treads Wheel Compact Wheel Utility Medium Storage Unit Device Cloak of Protection Storage Medium Storage Unit Hackware Hacking Suite Protection Light Armor Plating Weapon Heavy Assault Rifle Energy Gun Particle Gun Ballistic Gun Heavy Assault Rifle Ballistic Cannon Slug Cannon Build | -11 -10 -9 -9 -9 -8 ------- Run | Yrd Mat Mat Min Exi Min Slots Evolved 2 | . . 2 . . . Power . | . . . . . . Propulsion . | . . . . . . Utility . | . . . . . . Weapon 2 | . . 2 . . . Parts Attached 39 | 7 11 17 2 2 . Power 3 | 1 1 1 . . . Engine 2 | 1 . 1 . . . Core 1 | . 1 . . . . Reactor . | . . . . . . Propulsion 12 | 3 4 4 . 1 . Treads 8 | 2 2 4 . . . Leg . | . . . . . . Wheel 4 | 1 2 . . 1 . Hover . | . . . . . . Flight . | . . . . . . Utility 6 | 1 3 1 . 1 . Device 1 | . . . . 1 . Storage 2 | 1 1 . . . . Processor . | . . . . . . Hackware 1 | . 1 . . . . Protection 2 | . 1 1 . . . Artifact . | . . . . . . Weapon 18 | 2 3 11 2 . . Energy Gun 2 | . 1 1 . . . Energy Cannon . | . . . . . . Ballistic Gun 15 | 2 2 10 1 . . Ballistic Cannon 1 | . . . 1 . . Launcher . | . . . . . . Special Weapon . | . . . . . . Impact Weapon . | . . . . . . Slashing Weapon . | . . . . . . Piercing Weapon . | . . . . . . Special Melee Weapon . | . . . . . . Unidentified Prototypes . | . . . . . . Parts Lost 9 | . 3 3 2 . 1 Power 3 | . 1 1 . . 1 Propulsion 2 | . 2 . . . . Utility 1 | . . 1 . . . Weapon 3 | . . 1 2 . . Highest Loss Streak 3 | . 3 1 1 . 1 To Critical Strikes . | . . . . . . Average Slot Usage (%) 97 | . 95 95 100 100 100 Engine 8 | . 8 5 11 11 11 Core 3 | . 4 5 . . . Treads 21 | . 22 21 22 20 11 Wheel 2 | . 5 . . 1 11 Storage 11 | . 14 11 11 11 11 Hackware 1 | . 6 . . . . Protection 7 | . 4 9 11 6 . Energy Gun 6 | . 4 11 3 . . Ballistic Gun 28 | . 22 29 33 33 33 Ballistic Cannon 3 | . . . 7 11 11 Naked Turns . | . . . . . . Heaviest Build 37 | 10 22 30 32 37 37 Greatest Support 40 | 40 40 40 40 40 16 Greatest Overweight (x) 2 | 2 . 1 . 2 2 Average Overweight (x) . | . . . . . 2 Largest Inventory Capacity 10 | 8 10 10 10 10 10 Average Capacity 9 | 7 8 10 10 10 10 Most Carried 10 | 3 9 10 10 10 10 Average Carried 8 | 1 5 9 9 9 10 Final Capacity 10 | 8 10 10 10 10 10 Final Carried 10 | 3 9 10 9 10 10 Class Distribution -------------------- 53% | Scavenger-Tank 26% | Mutant 11% | Scavenger-Gunner 9% | Scavenger-Mutant Dominant Class ---------------- Mutant | -10/Materials Scavenger-Tank | -9/Materials Scavenger-Tank | -9/Mines Scavenger-Tank | -9/Exiles Scavenger-Gunner | -8/Mines Resources | -11 -10 -9 -9 -9 -8 ----------- Run | Yrd Mat Mat Min Exi Min Matter Collected 1313 | 241 324 519 184 . 45 Remotely . | . . . . . . Salvage Created 1918 | . 526 1050 255 . 87 Parts 157 | . 43 77 26 . 11 Haulers Intercepted 3 | . 1 2 . . . Recyclers Shooed 2 | . 1 1 . . . Parts Field Recycled . | . . . . . . Retrieved Matter . | . . . . . . Parts Self-Destructed . | . . . . . . Prevented . | . . . . . . Kills | -11 -10 -9 -9 -9 -8 ------- Run | Yrd Mat Mat Min Exi Min Combat Hostiles Destroyed 56 | . 14 25 11 . 6 Guns 56 | . 14 25 11 . 6 Classes Destroyed 9 | . 6 2 1 . . Worker 3 | . 1 1 1 . . Builder 1 | . . 1 . . . Hauler 3 | . 1 2 . . . Operator 3 | . 3 . . . . Watcher 3 | . 1 2 . . . Swarmer 30 | . 6 10 8 . 6 Grunt 20 | . 8 10 2 . . Duelist 1 | . . . 1 . . Sentry 5 | . . 5 . . . Best Kill Streak 7 | . 2 7 4 . 3 Combat Bots Only 5 | . 2 5 4 . 3 Max Kills in Single Turn 2 | . 1 2 2 . 2 Gunslinging . | . . . . . . Exploded . | . . . . . . Melee . | . . . . . . Uniques/NPCs Destroyed . | . . . . . . Combat | -11 -10 -9 -9 -9 -8 -------- Run | Yrd Mat Mat Min Exi Min Hostile Shots Fired 275 | . 77 69 52 . 77 Missed 79 | . 20 20 17 . 22 Damage Taken 2151 | . 601 586 334 . 630 Core 258 | . 101 89 32 . 36 Absorbed by Shields . | . . . . . . Core Remaining (%) 79 | 100 59 . . . . Volleys Fired 166 | . 76 55 20 1 14 Largest 4 | . 2 4 4 1 4 Hottest 170 | . 85 170 134 48 117 Shots Fired 476 | . 144 199 76 1 56 Gun 461 | . 144 199 76 . 42 Cannon 15 | . . . . 1 14 Launcher . | . . . . . . Special . | . . . . . . Kinetic 406 | . 139 152 58 1 56 Thermal 70 | . 5 47 18 . . Explosive . | . . . . . . Electromagnetic . | . . . . . . Robot Hit Streak 11 | . 10 11 9 . 3 Robot Miss Streak 10 | . 4 4 5 . 10 Penetration Max . | . . . . . . Secondary Targets 8 | . 2 1 5 . . Max Gunslinging Chain 1 | . 1 1 1 . . Shots Hit Robots 238 | . 78 103 40 . 17 Core Hits 106 | . 38 46 15 . 7 Critical Kills 2 | . . 1 1 . . Critical Parts Destroyed 2 | . . . . . 2 Critical Strikes 7 | . 1 3 1 . 2 Burn 3 | . 1 2 . . . Destroy 4 | . . 1 1 . 2 Melee Attacks . | . . . . . . Impact . | . . . . . . Slashing . | . . . . . . Piercing . | . . . . . . Sneak Attacks . | . . . . . . Combat Hostiles . | . . . . . . Follow-up Attacks . | . . . . . . Damage Inflicted 3155 | . 799 1346 634 . 376 Guns 3085 | . 795 1340 634 . 316 Cannons 60 | . . . . . 60 Explosions . | . . . . . . Melee . | . . . . . . Ramming 10 | . 4 6 . . . Kinetic 2567 | . 733 934 524 . 376 Thermal 578 | . 62 406 110 . . Explosive . | . . . . . . Electromagnetic . | . . . . . . Impact . | . . . . . . Slashing . | . . . . . . Piercing . | . . . . . . Highest Corruption 2 | . 2 . . . . Average Corruption 1 | . 1 . . . . Corruption Purged . | . . . . . . Corruption Blocked . | . . . . . . Effects 15 | . 15 . . . . Message Errors 3 | . 3 . . . . Matter Fused 5 | . 5 . . . . Heat Flow Errors 1 | . 1 . . . . Energy Discharges 2 | . 2 . . . . Parts Rejected 1 | . 1 . . . . Data Loss (minor) 2 | . 2 . . . . Weapon Failures 1 | . 1 . . . . Overload Shots . | . . . . . . Overflow Damage 2 | . . . . . 2 Projectiles 2 | . . . . . 2 Explosions . | . . . . . . Melee . | . . . . . . Knockbacks . | . . . . . . Impact . | . . . . . . Kinetic . | . . . . . . Secondary . | . . . . . . Self-Inflicted Damage . | . . . . . . Shots . | . . . . . . Rammed 2 | . . 2 . . . Targets Rammed 3 | . 1 2 . . . Kicked . | . . . . . . Crushed 1 | . 1 . . . . Highest Temperature 544 | . 234 544 267 . 410 Average Temperature 128 | . 49 156 114 . 122 Received Heat Transfer 720 | . 234 249 12 . 225 Effects 17 | . . 14 3 . . Shutdowns 2 | . . 2 . . . Interference 11 | . . 8 3 . . Matter Decay 1 | . . 1 . . . Short Circuit 1 | . . 1 . . . Damage (minor) 2 | . . 2 . . . Siege Activations . | . . . . . . Robots Corrupted . | . . . . . . Combat Hostiles . | . . . . . . Parts Fried . | . . . . . . Impact Corruptions . | . . . . . . Robots Melted . | . . . . . . Combat Hostiles . | . . . . . . Parts Melted . | . . . . . . Heat Transferred 1554 | . 222 1073 259 . . Parts Sabotaged . | . . . . . . Parts Stolen . | . . . . . . Parts Stripped . | . . . . . . Power Chain Reactions . | . . . . . . Alert | -11 -10 -9 -9 -9 -8 ------- Run | Yrd Mat Mat Min Exi Min Peak Influence 530 | . 238 530 440 . 161 Initial 175 | . . 37 175 . . Average 236 | . 149 273 352 . 95 Maximum Alert Level 2 | . 1 2 2 . . Low Security (%) 45 | 100 73 39 . . 100 Level 1 30 | . 26 27 50 . . Level 2 23 | . . 32 50 . . Level 3 . | . . . . . . Level 4 . | . . . . . . Level 5 . | . . . . . . High Security . | . . . . . . Max Security . | . . . . . . Squads Dispatched 5 | . 3 2 . . . Investigation 2 | . . 2 . . . Extermination . | . . . . . . Reinforcement 3 | . 3 . . . . Assault . | . . . . . . Garrison . | . . . . . . Intercept . | . . . . . . Searches Triggered . | . . . . . . Construction Impeded . | . . . . . . Haulers Reinforced . | . . . . . . Active Scanning Responses . | . . . . . . Cargo Convoy Interrupts . | . . . . . . Stealth | -11 -10 -9 -9 -9 -8 --------- Run | Yrd Mat Mat Min Exi Min Distress Signals 4 | . 3 1 . . . Communications Jammed . | . . . . . . Distress Signals . | . . . . . . Times Spotted 83 | . 24 38 11 . 10 Peak Tracking Total 9 | . 5 9 4 9 6 Tactical Retreats 5 | . 1 2 2 . . Traps | -11 -10 -9 -9 -9 -8 ------- Run | Yrd Mat Mat Min Exi Min Traps Triggered 4 | . 2 2 . . . Indirectly . | . . . . . . Trap Hack Attempts . | . . . . . . Triggered . | . . . . . . Disarmed . | . . . . . . Reprogrammed . | . . . . . . Reused . | . . . . . . Traps Extracted . | . . . . . . Installed . | . . . . . . Triggered . | . . . . . . Machines | -11 -10 -9 -9 -9 -8 ---------- Run | Yrd Mat Mat Min Exi Min Machines Disabled 1 | . . . . 1 . Max in Single Turn 1 | . . . . 1 . Machines Repaired . | . . . . . . Machines Dismantled . | . . . . . . Machines Sabotaged . | . . . . . . Overloaded Fab Kills . | . . . . . . Hacking | -11 -10 -9 -9 -9 -8 --------- Run | Yrd Mat Mat Min Exi Min Machines Accessed 7 | . 2 4 . 1 . Terminals 6 | . 2 4 . . . Fabricators . | . . . . . . Repair Stations . | . . . . . . Recycling Units . | . . . . . . Scanalyzers . | . . . . . . Garrison Access . | . . . . . . Total Hacks 17 | . 7 9 . 1 . Successful 6 | . 4 1 . 1 . Failed 10 | . 2 8 . . . Catastrophic 6 | . 1 5 . . . Database Lockouts 1 | . 1 . . . . Manual 16 | . 6 9 . 1 . Terminals 16 | . 7 9 . . . Fabricators . | . . . . . . Repair Stations . | . . . . . . Recycling Units . | . . . . . . Scanalyzers . | . . . . . . Garrison Access . | . . . . . . Terminal Hacks 4 | . 2 1 . 1 . Robot Analysis 1 | . 1 . . . . Branch Access Points 1 | . . 1 . . . Hauler Manifests 1 | . 1 . . . . Derelict Proto ID Bank 1 | . . . . 1 . Fabricator Hacks . | . . . . . . Repair Station Hacks . | . . . . . . Recycling Unit Hacks . | . . . . . . Scanalyzer . | . . . . . . Garrison Access Hacks . | . . . . . . Unauthorized Hacks 2 | . 2 . . . . Terminals 2 | . 2 . . . . Botnet 1 | . 1 . . . . Operators 1 | . 1 . . . . Fabricators . | . . . . . . Repair Stations . | . . . . . . Recycling Units . | . . . . . . Scanalyzers . | . . . . . . Garrison Access . | . . . . . . Data Cores Recovered . | . . . . . . Used . | . . . . . . Hacking Detections 6 | . 2 4 . . . Full Trace Events 3 | . 1 2 . . . Feedback Events . | . . . . . . Feedback Blocked . | . . . . . . Robot Schematics Acquired . | . . . . . . Robots Built . | . . . . . . Authchips . | . . . . . . Time . | . . . . . . Total Robot Build Rating . | . . . . . . Part Schematics Acquired . | . . . . . . Parts Built . | . . . . . . Authchips . | . . . . . . Time . | . . . . . . Total Part Build Rating . | . . . . . . Parts Repaired . | . . . . . . Time . | . . . . . . Parts Recycled . | . . . . . . Recycled Matter . | . . . . . . Retrieved Matter . | . . . . . . Retrieved Components . | . . . . . . Parts Scanalyzed . | . . . . . . Part Schematics Acquired . | . . . . . . Parts Damaged . | . . . . . . Bothacking | -11 -10 -9 -9 -9 -8 ------------ Run | Yrd Mat Mat Min Exi Min Used RIF Installer . | . . . . . . Robots Hacked . | . . . . . . Non-combat . | . . . . . . Combat . | . . . . . . Robot Hacks Applied . | . . . . . . Relay Couplers Released . | . . . . . . Fabnet Peak Effective % . | . . . . . . Robots Rewired . | . . . . . . Allies Hacked . | . . . . . . Hacks Repelled . | . . . . . . Allies | -11 -10 -9 -9 -9 -8 -------- Run | Yrd Mat Mat Min Exi Min Total Allies . | . . . . . . Largest Group . | . . . . . . Highest-Rated Group . | . . . . . . Highest-Rated Ally . | . . . . . . Total Orders . | . . . . . . Ally Attacks . | . . . . . . Total Damage . | . . . . . . Kills . | . . . . . . Allies Corrupted . | . . . . . . Allies Melted . | . . . . . . Intel | -11 -10 -9 -9 -9 -8 ------- Run | Yrd Mat Mat Min Exi Min Robot Analysis Total 1 | . 1 . . . . Derelict Logs Recovered 1 | . . . 1 . . Drone Launches . | . . . . . . Drone Recoveries . | . . . . . . Exploration | -11 -10 -9 -9 -9 -8 ------------- Run | Yrd Mat Mat Min Exi Min Turns Passed 2692 | 60 817 888 532 329 66 Spaces Moved 1332 | 34 418 377 282 208 13 Core 8 | 8 . . . . . Treads 1152 | 26 290 377 282 177 . Legs . | . . . . . . Wheels 172 | . 128 . . 31 13 Hover . | . . . . . . Flight . | . . . . . . Fastest Speed 50 | 50 90 160 160 130 130 Average Speed 152 | 142 138 160 160 155 130 Slowest Speed 240 | 160 160 240 160 160 130 Overloaded Moves . | . . . . . . Propulsion Burnouts . | . . . . . . Robots Hopped . | . . . . . . Cave-ins Triggered . | . . . . . . Exploration Rate (%) 42 | 4 85 40 63 59 6 Regions Visited 5 Branch Regions 3 Pre-discovered Areas . | . . . . . . Known Exits Taken 1 | . . 1 . . . Unknown Exits Taken 4 | 1 1 . 1 1 . Scrap Searched 1 | . . . 1 . . Spaces Dug . | . . . . . . Terrain Destroyed 10 | . . . . . 10 Melee . | . . . . . . Projectile 10 | . . . . . 10 AOE . | . . . . . . Terrain Rammed . | . . . . . . Walls Destroyed . | . . . . . . Machines Disabled . | . . . . . . Actions | -11 -10 -9 -9 -9 -8 --------- Run | Yrd Mat Mat Min Exi Min Total 1673 | 43 535 541 315 212 27 Wait 98 | . 11 76 11 . . Move 1327 | 33 417 376 281 207 13 Hop . | . . . . . . Pick Up 21 | 2 11 6 1 1 . Fast Attach 23 | 7 5 10 . 1 . Attach 9 | . 3 4 2 . . Detach 2 | 1 1 . . . . Swap 7 | . 3 3 . 1 . Drop 17 | . 7 9 . 1 . Fire 166 | . 76 55 20 1 14 Melee . | . . . . . . Ram . | . . . . . . Kick . | . . . . . . Crush 3 | . 1 2 . . . Escape Stasis . | . . . . . . Rewire . | . . . . . . Trap . | . . . . . . Miscellaneous . | . . . . . . Route ------- -11/Scrapyard -10/Materials (discovered 4 exits: *Mat x2 / [*Min x2]) -9/Materials (discovered 2 exits: [*Mat] / *Min) -9/Mines (discovered 4 exits: [*Mat x2] / *Exi / [*Zio]) -9/Exiles -8/Mines History --------- Turn | Location | Event 28 | -11/Scrapyard | Discovered new exit (range 15) 61 | -11/Scrapyard | Entered Materials 230 | -10/Materials | Discovered new exit (range 16) 313 | -10/Materials | Build established: Mutant 494 | -10/Materials | Discovered new exit (range 11) 554 | -10/Materials | Central database locked down 609 | -10/Materials | Lost 3 parts (1p2n) 702 | -10/Materials | Discovered new exit (range 16) 835 | -10/Materials | Discovered new exit (range 12) 878 | -10/Materials | Entered another Materials area 878 | -9/Materials | Evolved 2 slots: Weapon x2 1474 | -9/Materials | Build established: Scavenger-Tank 1640 | -9/Materials | Discovered new exit (range 15) 1657 | -9/Materials | Identified exit to Mines 1766 | -9/Materials | Entered Mines 1777 | -9/Mines | Met a Derelict bent on vengeance 1862 | -9/Mines | Found a damaged Exp. Sensor Array with a note attached 1913 | -9/Mines | A weapon hastily lodged in a ceiling crevice suddenly fell to the ground 1961 | -9/Mines | Discovered new exit (range 6) 1964 | -9/Mines | A Derelict revealed a hidden shortcut to a safe place 1999 | -9/Mines | Discovered new exit (range 7) 2126 | -9/Mines | Learned Materials emergency access door positions 2290 | -9/Mines | Deemed a non-threat by the Exiles lab entrance 2292 | -9/Mines | Discovered new exit (range 5) 2298 | -9/Mines | Entered Exiles 2337 | -9/Exiles | Met 8R-AWN 2364 | -9/Exiles | Met EX-HEX 2412 | -9/Exiles | Met EX-BIN 2430 | -9/Exiles | Aligned with FarCom system 2431 | -9/Exiles | Given EX-Vault access code 2468 | -9/Exiles | Opened EX-Vault 2478 | -9/Exiles | Found Longsword +1 2482 | -9/Exiles | Found Cloak of Protection 2516 | -9/Exiles | Warned to stay clear of 0b10 Research branches 2564 | -9/Exiles | Met EX-DEC 2592 | -9/Exiles | Attacked by the Exiles 2617 | -9/Exiles | Discovered new exit (range 10) 2627 | -9/Exiles | Stole two prototypes: Cloak of Protection, Longsword +1 2627 | -9/Exiles | Entered Mines 2693 | -8/Mines | Self-destructed Last Messages --------------- S-10 Pest destroyed. Slug penetrates Wall. C-30 ARC bursts open, deploying its payload. G-50 Soldier unfolds itself. G-47 Trooper unfolds itself. T-07 Excavator is excavating. S-10 Pest destroyed. T-07 Excavator is excavating. G-47 Trooper suffers critical hit (Destroy). Destroyed Lgt. Nuclear Core. T-07 Excavator is excavating. Slug penetrates Wall. T-07 Excavator is excavating. Critical hit (Burn: +37). S-10 Pest destroyed. T-07 Excavator is excavating. Slug penetrates Earth. Lgt. Ion Engine destroyed. Critical hit (Burn: +37). T-07 Excavator is excavating. Map ----- +----------------------------------------------------+ | ????????????????????????????????????????????????? | | ????????????????????????????????????????????????? | | ????????????????????????????????????????????????? | | ????????????????????????????????????????????????? | | ????????????????????????????????????????????????? | | ????????????????????????????????????????????????? | | ????????????????????????????????????????????????? | | ????????????????????????????????????????????????? | | ????????????????????????????????????????????????? | | ????????????????????????????????????????????????? | | ???????????????????????? ???????????????????????? | | ???????????????????????# ?## ??????????????????? | | ???????????????????????#%#;;;;??????????????????? | | ??????????????????????## ??????????????????? | | ??????????????????????? ???????????????????? | | ??????????????????????? gg=s???????????????????? | | ???????????????????????# [%=???????????????????? | | ???????????????????????#g %#???????????????????? | | ??????????????????????## =#???????????????????? | | ??????????????????????# ????????????????????? | | ??????????????????????# ????????????????????? | | ???????????????????????# #?????####???????????? | | ????????????????????????# #???### ##??????????? | | ????????????????????????# ##### * #??????????? | | ???????????????????????## =[ * #??????????? | | ???????????????????????#;@ =[[ #??????????? | | ???????????????????????#; ##### #??????????? | | ??????????????????????# # #???## ##??????????? | | ??????????????????????## #???#####???????????? | | ???????????????????????? #???????????????????? | | ???????????????????????? t##???????????????????? | | ???????????????????????? ##????????????????????? | | ???????????????????????###??????????????????????? | | ????????????????????????????????????????????????? | | ????????????????????????????????????????????????? | | ????????????????????????????????????????????????? | | ????????????????????????????????????????????????? | | | | | | | | | | | | | | | | | | | | | | | | | | | +----------------------------------------------------+ Best States ------------- Heat Dissipation 28 Energy Generation 14 Energy Capacity 160 Matter Stores 300 Matter Capacity 300 Sight Range 16 Terrain Scan Density 10 Cloak Strength 5 Armor Coverage 150 Evasion (%) 42 Recoil Reduction 2 Offensive Hacking 10 Item Schematics ----------------- None Robot Schematics ------------------ None Fabricated ------------ Nothing Alien Tech Used ----------------- None Achievements -------------- None Challenges ------------ None Game ------ Seed LinearZhirovRailgun Manual? 1 Play Time 00:18:05 Cumulative 431.5 hours Start 2024.07.17 @ 12:57:52 End 2024.07.17 @ 13:15:34 Sessions 1 Manual Loads 0 Difficulty Rogue Special Mode None Game No. 242 Rogue 242 Adventurer 0 Explorer 0 Win Type - Total 29 Types 18/2/2/3/1/1/1/1/0 Lore% 82 Gallery% 92 Achievement% 95 Wizard Run 0 Options --------- Layout 1 ASCII 0 Keyboard 0 Movement Numpad Keybinds 0 Fullscreen 1 Font 24/Smallcaps Map View 50x35 Zoom Use 0% Tactical HUD 1 Map Filters NONE Filters NONE Steam 1 RUN: 6d031474-7a10-4e61-a4a6-b09c21e6f7d0